[Event "Titled Tuesday Blitz May 30 Late 2023"]
[White "Brown, Raehanna"]
[Black "Mathieu, Phileas"]
[WhiteFideId "7402740"]
[BlackFideId "36048410"]
[WhiteElo "1655"]
[BlackElo "2241"]
[Result "0-1"]
[Round "01"]
[TimeControl "180+2"]
[Date "2023.05.31"]
[WhiteClock "0:00:06"]
[BlackClock "0:01:20"]

1. c4 {[%clk 0:02:50]}  e5 {[%clk 0:02:56]} 2. Nc3 {[%clk 0:02:47]}  Nf6 {[%clk 0:02:57]} 3. Nf3 {[%clk 0:02:43]}  Nc6 {[%clk 0:02:56]} 4. g3 {[%clk 0:02:42]}  Bb4 {[%clk 0:02:56]} 5. Bg2 {[%clk 0:02:42]}  O-O {[%clk 0:02:57]} 6. O-O {[%clk 0:02:42]}  d6 {[%clk 0:02:57]} 7. d3 {[%clk 0:02:40]}  h6 {[%clk 0:02:56]} 8. h3 {[%clk 0:02:40]}  Qe7 {[%clk 0:02:56]} 9. e4 {[%clk 0:02:39]}  Bxc3 {[%clk 0:02:50]} 10. bxc3 {[%clk 0:02:38]}  a5 {[%clk 0:02:50]} 11. Kh2 {[%clk 0:02:29]}  Nd7 {[%clk 0:02:50]} 12. Nh4 {[%clk 0:02:28]}  Nc5 {[%clk 0:02:47]} 13. Be3 {[%clk 0:02:08]}  b6 {[%clk 0:02:46]} 14. Qc2 {[%clk 0:02:04]}  Rb8 {[%clk 0:02:32]} 15. d4 {[%clk 0:02:02]}  Nd7 {[%clk 0:02:29]} 16. Nf5 {[%clk 0:02:00]}  Qe8 {[%clk 0:02:14]} 17. Rab1 {[%clk 0:01:48]}  Ne7 {[%clk 0:02:13]} 18. Nxe7+ {[%clk 0:01:45]}  Qxe7 {[%clk 0:02:14]} 19. c5 {[%clk 0:01:45]}  dxc5 {[%clk 0:02:10]} 20. dxc5 {[%clk 0:01:42]}  Nxc5 {[%clk 0:02:10]} 21. Rfd1 {[%clk 0:01:41]}  Be6 {[%clk 0:02:07]} 22. Rb5 {[%clk 0:01:32]}  Nd7 {[%clk 0:02:04]} 23. f4 {[%clk 0:01:26]}  Bc4 {[%clk 0:01:59]} 24. Rbb1 {[%clk 0:01:21]}  Rbd8 {[%clk 0:01:57]} 25. f5 {[%clk 0:01:20]}  Nc5 {[%clk 0:01:55]} 26. Rxd8 {[%clk 0:01:16]}  Rxd8 {[%clk 0:01:55]} 27. Rd1 {[%clk 0:01:16]}  Rxd1 {[%clk 0:01:55]} 28. Qxd1 {[%clk 0:01:16]}  Qd6 {[%clk 0:01:56]} 29. Qc2 {[%clk 0:01:10]}  f6 {[%clk 0:01:50]} 30. Qf2 {[%clk 0:00:58]}  Nd3 {[%clk 0:01:48]} 31. Qd2 {[%clk 0:00:54]}  c5 {[%clk 0:01:47]} 32. Bf1 {[%clk 0:00:51]}  Kf7 {[%clk 0:01:47]} 33. a4 {[%clk 0:00:49]}  Ke7 {[%clk 0:01:46]} 34. Kg2 {[%clk 0:00:46]}  Kd7 {[%clk 0:01:39]} 35. Kf3 {[%clk 0:00:43]}  Kc6 {[%clk 0:01:39]} 36. g4 {[%clk 0:00:37]}  Ba6 {[%clk 0:01:38]} 37. h4 {[%clk 0:00:31]}  c4 {[%clk 0:01:35]} 38. Ke2 {[%clk 0:00:22]}  Qa3 {[%clk 0:01:33]} 39. Qc2 {[%clk 0:00:14]}  b5 {[%clk 0:01:30]} 40. axb5+ {[%clk 0:00:13]}  Bxb5 {[%clk 0:01:31]} 41. Kf3 {[%clk 0:00:13]}  Qa1 {[%clk 0:01:22]} 42. Bg2 {[%clk 0:00:11]}  Ne1+ {[%clk 0:01:20]} 43. Kg3 {[%clk 0:00:11]}  Nxc2 {[%clk 0:01:21]} 44. g5 {[%clk 0:00:09]}  Nxe3 {[%clk 0:01:21]} 45. gxf6 {[%clk 0:00:06]}  gxf6 {[%clk 0:01:20]} 0-1


[Site "https://www.chess.com"]

[Event "Titled Tuesday Blitz May 30 Late 2023"]
[White "KSho99"]
[Black "SergioMoralesG"]
[WhiteElo "2182"]
[BlackElo "2559"]
[Result "1-0"]
[Round "01"]
[TimeControl "180+2"]
[Date "2023.05.31"]
[WhiteClock "0:00:07"]
[BlackClock "0:00:03"]

1. Nf3 {[%clk 0:03:00]}  d5 {[%clk 0:02:39]} 2. d4 {[%clk 0:02:59]}  Nf6 {[%clk 0:02:38]} 3. e3 {[%clk 0:02:59]}  Bf5 {[%clk 0:02:36]} 4. c4 {[%clk 0:02:53]}  e6 {[%clk 0:02:34]} 5. Qb3 {[%clk 0:02:47]}  Qc8 {[%clk 0:02:33]} 6. Nc3 {[%clk 0:02:38]}  c6 {[%clk 0:02:33]} 7. Nh4 {[%clk 0:02:31]}  Bg6 {[%clk 0:02:29]} 8. g3 {[%clk 0:02:15]}  Be7 {[%clk 0:02:28]} 9. Nxg6 {[%clk 0:02:13]}  hxg6 {[%clk 0:02:27]} 10. Bg2 {[%clk 0:02:13]}  Nbd7 {[%clk 0:02:24]} 11. O-O {[%clk 0:02:05]}  O-O {[%clk 0:02:23]} 12. e4 {[%clk 0:01:57]}  dxc4 {[%clk 0:02:13]} 13. Qxc4 {[%clk 0:01:57]}  e5 {[%clk 0:02:14]} 14. dxe5 {[%clk 0:01:38]}  Nxe5 {[%clk 0:02:14]} 15. Qe2 {[%clk 0:01:38]}  Rd8 {[%clk 0:02:11]} 16. h3 {[%clk 0:01:19]}  Qc7 {[%clk 0:02:07]} 17. Bf4 {[%clk 0:01:09]}  Nfd7 {[%clk 0:02:00]} 18. Rfd1 {[%clk 0:01:07]}  Qb6 {[%clk 0:01:58]} 19. Be3 {[%clk 0:01:05]}  Qc7 {[%clk 0:01:49]} 20. f4 {[%clk 0:01:03]}  Bf6 {[%clk 0:01:27]} 21. fxe5 {[%clk 0:01:02]}  Qxe5 {[%clk 0:01:27]} 22. Bf4 {[%clk 0:00:59]}  Qc5+ {[%clk 0:01:26]} 23. Qf2 {[%clk 0:00:57]}  Qb4 {[%clk 0:01:21]} 24. Rd3 {[%clk 0:00:40]}  Nc5 {[%clk 0:01:06]} 25. Rxd8+ {[%clk 0:00:39]}  Rxd8 {[%clk 0:01:07]} 26. Rd1 {[%clk 0:00:26]}  Rxd1+ {[%clk 0:00:45]} 27. Nxd1 {[%clk 0:00:26]}  Nd3 {[%clk 0:00:40]} 28. Qe2 {[%clk 0:00:16]}  Bd4+ {[%clk 0:00:21]} 29. Be3 {[%clk 0:00:13]}  Nc1 {[%clk 0:00:12]} 30. Qf2 {[%clk 0:00:12]}  Bxe3 {[%clk 0:00:11]} 31. Nxe3 {[%clk 0:00:10]}  Nd3 {[%clk 0:00:10]} 32. Qc2 {[%clk 0:00:10]}  Qe1+ {[%clk 0:00:08]} 33. Nf1 {[%clk 0:00:10]}  Ne5 {[%clk 0:00:07]} 34. Qc3 {[%clk 0:00:07]}  f6 {[%clk 0:00:03]} 35. Qxe1 {[%clk 0:00:07]} 1-0


[Site "https://www.chess.com"]

[Event "Titled Tuesday Blitz May 30 Late 2023"]
[White "ritanovikova"]
[Black "Golubev, Mikhail"]
[BlackFideId "14100983"]
[WhiteElo "2171"]
[BlackElo "2374"]
[Result "0-1"]
[Round "01"]
[TimeControl "180+2"]
[Date "2023.05.31"]
[WhiteClock "0:00:00"]
[BlackClock "0:00:04"]

1. e4 {[%clk 0:02:59]}  d6 {[%clk 0:02:59]} 2. d4 {[%clk 0:02:58]}  Nf6 {[%clk 0:02:59]} 3. Nc3 {[%clk 0:02:58]}  g6 {[%clk 0:02:59]} 4. Be2 {[%clk 0:02:55]}  Bg7 {[%clk 0:02:57]} 5. Be3 {[%clk 0:02:55]}  Nbd7 {[%clk 0:02:51]} 6. h3 {[%clk 0:02:54]}  e5 {[%clk 0:02:46]} 7. Nf3 {[%clk 0:02:54]}  exd4 {[%clk 0:02:43]} 8. Nxd4 {[%clk 0:02:53]}  O-O {[%clk 0:02:43]} 9. Qd2 {[%clk 0:02:51]}  Re8 {[%clk 0:02:41]} 10. Bf3 {[%clk 0:02:50]}  Nc5 {[%clk 0:02:37]} 11. Bg5 {[%clk 0:02:30]}  Nfxe4 {[%clk 0:02:21]} 12. Nxe4 {[%clk 0:01:49]}  Nxe4 {[%clk 0:02:22]} 13. Bxd8 {[%clk 0:01:33]}  Nxd2+ {[%clk 0:02:21]} 14. Kxd2 {[%clk 0:01:34]}  Rxd8 {[%clk 0:02:18]} 15. Nb5 {[%clk 0:01:32]}  c6 {[%clk 0:02:11]} 16. Nc3 {[%clk 0:01:24]}  d5 {[%clk 0:02:11]} 17. Rhe1 {[%clk 0:01:23]}  Bf5 {[%clk 0:02:06]} 18. g4 {[%clk 0:01:22]}  Be6 {[%clk 0:02:00]} 19. Rad1 {[%clk 0:01:13]}  b5 {[%clk 0:01:54]} 20. Kc1 {[%clk 0:01:12]}  a5 {[%clk 0:01:51]} 21. Ne2 {[%clk 0:01:13]}  Kf8 {[%clk 0:01:39]} 22. Kb1 {[%clk 0:01:11]}  a4 {[%clk 0:01:37]} 23. a3 {[%clk 0:01:11]}  Bd7 {[%clk 0:01:26]} 24. c3 {[%clk 0:01:02]}  Re8 {[%clk 0:01:23]} 25. Nf4 {[%clk 0:01:00]}  Rxe1 {[%clk 0:01:17]} 26. Rxe1 {[%clk 0:01:01]}  Re8 {[%clk 0:01:12]} 27. Rxe8+ {[%clk 0:00:57]}  Kxe8 {[%clk 0:01:12]} 28. Nd3 {[%clk 0:00:57]}  Ke7 {[%clk 0:01:11]} 29. Nc5 {[%clk 0:00:56]}  Bc8 {[%clk 0:01:11]} 30. Kc2 {[%clk 0:00:46]}  Kd6 {[%clk 0:01:11]} 31. Nd3 {[%clk 0:00:45]}  c5 {[%clk 0:01:06]} 32. Nf4 {[%clk 0:00:43]}  Be5 {[%clk 0:00:57]} 33. Nd3 {[%clk 0:00:29]}  Bh2 {[%clk 0:00:56]} 34. Ne1 {[%clk 0:00:25]}  Be6 {[%clk 0:00:51]} 35. Ng2 {[%clk 0:00:25]}  h6 {[%clk 0:00:47]} 36. Be2 {[%clk 0:00:24]}  Be5 {[%clk 0:00:46]} 37. Bxb5 {[%clk 0:00:23]}  Bd7 {[%clk 0:00:41]} 38. Bxd7 {[%clk 0:00:22]}  Kxd7 {[%clk 0:00:42]} 39. Ne3 {[%clk 0:00:22]}  Kc6 {[%clk 0:00:38]} 40. b4 {[%clk 0:00:20]}  axb3+ {[%clk 0:00:37]} 41. Kxb3 {[%clk 0:00:21]}  c4+ {[%clk 0:00:37]} 42. Kc2 {[%clk 0:00:17]}  Bd6 {[%clk 0:00:29]} 43. Kb2 {[%clk 0:00:17]}  Bc5 {[%clk 0:00:28]} 44. Nd1 {[%clk 0:00:17]}  Kb5 {[%clk 0:00:23]} 45. Ne3 {[%clk 0:00:15]}  Kc6 {[%clk 0:00:12]} 46. Nd1 {[%clk 0:00:14]}  f5 {[%clk 0:00:10]} 47. gxf5 {[%clk 0:00:12]}  gxf5 {[%clk 0:00:11]} 48. Ne3 {[%clk 0:00:12]}  f4 {[%clk 0:00:11]} 49. Nd1 {[%clk 0:00:11]}  Kb5 {[%clk 0:00:11]} 50. Ka2 {[%clk 0:00:08]}  f3 {[%clk 0:00:08]} 51. Kb1 {[%clk 0:00:06]}  Bxa3 {[%clk 0:00:05]} 52. Kc2 {[%clk 0:00:05]}  Bc5 {[%clk 0:00:05]} 53. Kd2 {[%clk 0:00:05]}  d4 {[%clk 0:00:05]} 54. cxd4 {[%clk 0:00:04]}  Bxd4 {[%clk 0:00:05]} 55. h4 {[%clk 0:00:02]}  Kb4 {[%clk 0:00:05]} 56. h5 {[%clk 0:00:00]}  Kb3 {[%clk 0:00:04]} 0-1


[Site "https://www.chess.com"]

[Event "Titled Tuesday Blitz May 30 Late 2023"]
[White "Fuentes Godoy, Lilia Ivonne"]
[Black "Bilan, Danila"]
[WhiteFideId "5104130"]
[BlackFideId "24161918"]
[WhiteElo "2096"]
[BlackElo "2182"]
[Result "0-1"]
[Round "01"]
[TimeControl "180+2"]
[Date "2023.05.31"]
[WhiteClock "0:00:00"]
[BlackClock "0:00:03"]

1. d4 {[%clk 0:03:00]}  d5 {[%clk 0:02:57]} 2. c4 {[%clk 0:03:00]}  c6 {[%clk 0:02:57]} 3. cxd5 {[%clk 0:03:00]}  cxd5 {[%clk 0:02:58]} 4. Bf4 {[%clk 0:03:00]}  Nf6 {[%clk 0:02:55]} 5. Nc3 {[%clk 0:03:00]}  a6 {[%clk 0:02:54]} 6. e3 {[%clk 0:03:01]}  Nc6 {[%clk 0:02:54]} 7. Bd3 {[%clk 0:02:58]}  Bg4 {[%clk 0:02:53]} 8. Qb3 {[%clk 0:02:12]}  Na5 {[%clk 0:02:52]} 9. Qa4+ {[%clk 0:02:12]}  b5 {[%clk 0:02:31]} 10. Qc2 {[%clk 0:02:07]}  Rc8 {[%clk 0:02:25]} 11. Rc1 {[%clk 0:01:45]}  e6 {[%clk 0:01:21]} 12. Qb1 {[%clk 0:01:42]}  Bb4 {[%clk 0:01:10]} 13. Ne2 {[%clk 0:01:26]}  Nc4 {[%clk 0:01:03]} 14. f3 {[%clk 0:01:18]}  Bh5 {[%clk 0:00:56]} 15. a3 {[%clk 0:01:02]}  Bd6 {[%clk 0:00:43]} 16. Bxd6 {[%clk 0:01:00]}  Qxd6 {[%clk 0:00:43]} 17. Bxc4 {[%clk 0:00:59]}  bxc4 {[%clk 0:00:37]} 18. b4 {[%clk 0:00:28]}  cxb3 {[%clk 0:00:27]} 19. Qxb3 {[%clk 0:00:25]}  O-O {[%clk 0:00:28]} 20. O-O {[%clk 0:00:21]}  Rb8 {[%clk 0:00:21]} 21. Qa4 {[%clk 0:00:19]}  Bg6 {[%clk 0:00:18]} 22. Nf4 {[%clk 0:00:19]}  Rb2 {[%clk 0:00:14]} 23. Nxg6 {[%clk 0:00:18]}  hxg6 {[%clk 0:00:15]} 24. Rf2 {[%clk 0:00:15]}  Rxf2 {[%clk 0:00:13]} 25. Kxf2 {[%clk 0:00:16]}  Qxh2 {[%clk 0:00:13]} 26. Qxa6 {[%clk 0:00:16]}  Qh4+ {[%clk 0:00:10]} 27. Ke2 {[%clk 0:00:14]}  Qg3 {[%clk 0:00:09]} 28. Kf1 {[%clk 0:00:14]}  Qh2 {[%clk 0:00:08]} 29. Kf2 {[%clk 0:00:12]}  Nh5 {[%clk 0:00:07]} 30. Qf1 {[%clk 0:00:10]}  Qg3+ {[%clk 0:00:04]} 31. Ke2 {[%clk 0:00:10]}  Qg5 {[%clk 0:00:04]} 32. Qf2 {[%clk 0:00:10]}  Qe7 {[%clk 0:00:03]} 33. Kd2 {[%clk 0:00:10]}  Qxa3 {[%clk 0:00:02]} 34. Rc2 {[%clk 0:00:11]}  Qb4 {[%clk 0:00:02]} 35. g4 {[%clk 0:00:11]}  Nf6 {[%clk 0:00:03]} 36. Kd3 {[%clk 0:00:08]}  Nd7 {[%clk 0:00:03]} 37. Qh4 {[%clk 0:00:07]}  Qc4+ {[%clk 0:00:03]} 38. Kd2 {[%clk 0:00:07]}  f6 {[%clk 0:00:03]} 39. Ne2 {[%clk 0:00:05]}  Qb4+ {[%clk 0:00:04]} 40. Kd1 {[%clk 0:00:06]}  Rb8 {[%clk 0:00:04]} 41. Nf4 {[%clk 0:00:06]}  Qb1+ {[%clk 0:00:04]} 42. Kd2 {[%clk 0:00:06]}  Kf7 {[%clk 0:00:04]} 43. Qh2 {[%clk 0:00:04]}  Rb2 {[%clk 0:00:05]} 44. Kd3 {[%clk 0:00:04]}  Nb6 {[%clk 0:00:04]} 45. Kc3 {[%clk 0:00:03]}  Rb3+ {[%clk 0:00:04]} 46. Kd2 {[%clk 0:00:00]}  Nc4+ {[%clk 0:00:03]} 0-1


[Site "https://www.chess.com"]

[Event "Titled Tuesday Blitz May 30 Late 2023"]
[White "Suder, Jakub"]
[Black "Florianovitz, Derlei Alex"]
[WhiteFideId "1195310"]
[BlackFideId "2114178"]
[WhiteElo "2287"]
[BlackElo "1953"]
[Result "1-0"]
[Round "01"]
[TimeControl "180+2"]
[Date "2023.05.31"]
[WhiteClock "0:01:46"]
[BlackClock "0:00:23"]

1. d4 {[%clk 0:03:00]}  Nf6 {[%clk 0:02:55]} 2. c4 {[%clk 0:03:00]}  e6 {[%clk 0:02:51]} 3. Nc3 {[%clk 0:03:01]}  Bb4 {[%clk 0:02:50]} 4. f3 {[%clk 0:03:01]}  d5 {[%clk 0:02:47]} 5. a3 {[%clk 0:03:00]}  Bxc3+ {[%clk 0:02:47]} 6. bxc3 {[%clk 0:03:01]}  O-O {[%clk 0:02:47]} 7. cxd5 {[%clk 0:03:01]}  exd5 {[%clk 0:02:47]} 8. e3 {[%clk 0:03:01]}  c5 {[%clk 0:02:39]} 9. Bd3 {[%clk 0:03:01]}  cxd4 {[%clk 0:02:38]} 10. cxd4 {[%clk 0:03:02]}  Nc6 {[%clk 0:02:35]} 11. Ne2 {[%clk 0:03:02]}  Re8 {[%clk 0:02:21]} 12. O-O {[%clk 0:02:56]}  Bd7 {[%clk 0:02:18]} 13. Ng3 {[%clk 0:02:56]}  b6 {[%clk 0:02:15]} 14. Ra2 {[%clk 0:02:55]}  Na5 {[%clk 0:02:14]} 15. Re2 {[%clk 0:02:53]}  Rc8 {[%clk 0:02:06]} 16. Ree1 {[%clk 0:02:45]}  Rc3 {[%clk 0:01:57]} 17. Bb2 {[%clk 0:02:26]}  Rb3 {[%clk 0:01:53]} 18. Qd2 {[%clk 0:02:19]}  Nc4 {[%clk 0:01:44]} 19. Bxc4 {[%clk 0:02:19]}  dxc4 {[%clk 0:01:45]} 20. e4 {[%clk 0:02:06]}  Bb5 {[%clk 0:01:31]} 21. Bc3 {[%clk 0:02:02]}  Rxa3 {[%clk 0:01:25]} 22. d5 {[%clk 0:02:01]}  Ba4 {[%clk 0:01:09]} 23. Nf5 {[%clk 0:02:00]}  Bb3 {[%clk 0:00:59]} 24. Qg5 {[%clk 0:01:57]}  Nh5 {[%clk 0:00:32]} 25. Qxh5 {[%clk 0:01:50]}  g6 {[%clk 0:00:23]} 26. Qh6 {[%clk 0:01:46]} 1-0


[Site "https://www.chess.com"]

[Event "Titled Tuesday Blitz May 30 Late 2023"]
[White "Mortazavi, Ali"]
[Black "Horokoskii"]
[WhiteFideId "401323"]
[WhiteElo "2339"]
[BlackElo "2139"]
[Result "1-0"]
[Round "01"]
[TimeControl "180+2"]
[Date "2023.05.31"]
[WhiteClock "0:01:09"]
[BlackClock "0:00:03"]

1. Nf3 {[%clk 0:02:57]}  d5 {[%clk 0:02:56]} 2. g3 {[%clk 0:02:57]}  Nf6 {[%clk 0:02:56]} 3. Bg2 {[%clk 0:02:57]}  g6 {[%clk 0:02:54]} 4. O-O {[%clk 0:02:58]}  Bg7 {[%clk 0:02:54]} 5. d3 {[%clk 0:02:59]}  O-O {[%clk 0:02:53]} 6. Nbd2 {[%clk 0:02:59]}  c5 {[%clk 0:02:51]} 7. e3 {[%clk 0:02:58]}  Nc6 {[%clk 0:02:50]} 8. e4 {[%clk 0:02:59]}  dxe4 {[%clk 0:02:50]} 9. dxe4 {[%clk 0:03:00]}  Bg4 {[%clk 0:02:46]} 10. h3 {[%clk 0:03:00]}  Bxf3 {[%clk 0:02:43]} 11. Qxf3 {[%clk 0:03:01]}  Nd4 {[%clk 0:02:41]} 12. Qd1 {[%clk 0:03:01]}  e5 {[%clk 0:02:36]} 13. c3 {[%clk 0:03:01]}  Ne6 {[%clk 0:02:31]} 14. Qe2 {[%clk 0:03:01]}  b6 {[%clk 0:02:09]} 15. a4 {[%clk 0:03:00]}  Qc7 {[%clk 0:02:02]} 16. h4 {[%clk 0:02:47]}  h5 {[%clk 0:01:57]} 17. Bh3 {[%clk 0:02:47]}  Qe7 {[%clk 0:01:52]} 18. Nc4 {[%clk 0:02:45]}  Nc7 {[%clk 0:01:11]} 19. Bg5 {[%clk 0:02:40]}  Rad8 {[%clk 0:01:10]} 20. Rad1 {[%clk 0:02:26]}  Rxd1 {[%clk 0:01:06]} 21. Rxd1 {[%clk 0:02:26]}  Rd8 {[%clk 0:01:06]} 22. Ne3 {[%clk 0:02:23]}  Rxd1+ {[%clk 0:01:01]} 23. Qxd1 {[%clk 0:02:23]}  Qe8 {[%clk 0:01:01]} 24. Qd6 {[%clk 0:02:04]}  Ne6 {[%clk 0:00:49]} 25. Bxf6 {[%clk 0:01:58]}  Bxf6 {[%clk 0:00:47]} 26. Nd5 {[%clk 0:01:58]}  Bg7 {[%clk 0:00:46]} 27. Bxe6 {[%clk 0:01:41]}  fxe6 {[%clk 0:00:45]} 28. Nc7 {[%clk 0:01:35]}  Qxa4 {[%clk 0:00:44]} 29. Qxe6+ {[%clk 0:01:35]}  Kh7 {[%clk 0:00:42]} 30. Qf7 {[%clk 0:01:21]}  Qd1+ {[%clk 0:00:22]} 31. Kg2 {[%clk 0:01:14]}  Qd3 {[%clk 0:00:17]} 32. Ne8 {[%clk 0:01:09]}  Qxe4+ {[%clk 0:00:03]} 33. Kh2 {[%clk 0:01:09]} 1-0


[Site "https://www.chess.com"]

[Event "Titled Tuesday Blitz May 30 Late 2023"]
[White "Delorme, Alban"]
[Black "Ozates, Tuna"]
[WhiteFideId "623636"]
[BlackFideId "6354521"]
[WhiteElo "2196"]
[BlackElo "2151"]
[Result "1-0"]
[Round "01"]
[TimeControl "180+2"]
[Date "2023.05.31"]
[WhiteClock "0:00:10"]
[BlackClock "0:00:14"]

1. e4 {[%clk 0:03:00]}  e5 {[%clk 0:02:52]} 2. Nf3 {[%clk 0:03:01]}  Nf6 {[%clk 0:02:51]} 3. Nxe5 {[%clk 0:03:00]}  d6 {[%clk 0:02:51]} 4. Nf3 {[%clk 0:03:00]}  Nxe4 {[%clk 0:02:51]} 5. Nc3 {[%clk 0:03:00]}  Nxc3 {[%clk 0:02:51]} 6. dxc3 {[%clk 0:03:01]}  Be7 {[%clk 0:02:51]} 7. Bd3 {[%clk 0:03:02]}  O-O {[%clk 0:02:52]} 8. O-O {[%clk 0:03:01]}  d5 {[%clk 0:02:52]} 9. h3 {[%clk 0:02:59]}  c5 {[%clk 0:02:50]} 10. c4 {[%clk 0:02:50]}  d4 {[%clk 0:02:50]} 11. c3 {[%clk 0:02:41]}  Nc6 {[%clk 0:02:49]} 12. cxd4 {[%clk 0:02:40]}  Nxd4 {[%clk 0:02:49]} 13. Nxd4 {[%clk 0:02:34]}  Qxd4 {[%clk 0:02:47]} 14. Qc2 {[%clk 0:02:32]}  h6 {[%clk 0:02:44]} 15. Be3 {[%clk 0:02:32]}  Qh4 {[%clk 0:02:44]} 16. Rfe1 {[%clk 0:02:28]}  Bd6 {[%clk 0:02:41]} 17. Rad1 {[%clk 0:02:24]}  Kh8 {[%clk 0:02:30]} 18. Be4 {[%clk 0:02:11]}  Be7 {[%clk 0:02:18]} 19. Bf3 {[%clk 0:01:39]}  Be6 {[%clk 0:02:15]} 20. Bxb7 {[%clk 0:01:30]}  Rab8 {[%clk 0:02:14]} 21. Bd5 {[%clk 0:01:31]}  Bf6 {[%clk 0:02:06]} 22. b3 {[%clk 0:01:29]}  Rfc8 {[%clk 0:01:51]} 23. Bxe6 {[%clk 0:01:20]}  fxe6 {[%clk 0:01:52]} 24. Rd7 {[%clk 0:01:08]}  a5 {[%clk 0:01:50]} 25. Ra7 {[%clk 0:01:06]}  Rd8 {[%clk 0:01:19]} 26. Rxa5 {[%clk 0:00:55]}  Bd4 {[%clk 0:01:19]} 27. Bxd4 {[%clk 0:00:53]}  cxd4 {[%clk 0:01:18]} 28. Qd3 {[%clk 0:00:49]}  Qf6 {[%clk 0:01:16]} 29. Rae5 {[%clk 0:00:47]}  Rb6 {[%clk 0:01:16]} 30. c5 {[%clk 0:00:44]}  Rc6 {[%clk 0:01:16]} 31. b4 {[%clk 0:00:44]}  Rf8 {[%clk 0:01:12]} 32. R1e2 {[%clk 0:00:41]}  Rd8 {[%clk 0:01:09]} 33. b5 {[%clk 0:00:41]}  Rcc8 {[%clk 0:01:09]} 34. Rxe6 {[%clk 0:00:40]}  Qf4 {[%clk 0:01:09]} 35. c6 {[%clk 0:00:32]}  Rf8 {[%clk 0:01:01]} 36. R6e4 {[%clk 0:00:29]}  Qc1+ {[%clk 0:01:01]} 37. Kh2 {[%clk 0:00:27]}  Qf1 {[%clk 0:00:54]} 38. Qxd4 {[%clk 0:00:21]}  Rcd8 {[%clk 0:00:51]} 39. Qe3 {[%clk 0:00:11]}  Rd1 {[%clk 0:00:50]} 40. Re8 {[%clk 0:00:10]}  Qg1+ {[%clk 0:00:21]} 41. Kg3 {[%clk 0:00:09]}  Rxe8 {[%clk 0:00:17]} 42. Qxe8+ {[%clk 0:00:09]}  Kh7 {[%clk 0:00:18]} 43. Qe4+ {[%clk 0:00:09]}  Kh8 {[%clk 0:00:18]} 44. c7 {[%clk 0:00:10]}  Rc1 {[%clk 0:00:18]} 45. Qe8+ {[%clk 0:00:09]}  Kh7 {[%clk 0:00:18]} 46. c8=Q {[%clk 0:00:10]}  Rxc8 {[%clk 0:00:17]} 47. Qxc8 {[%clk 0:00:11]}  Qb1 {[%clk 0:00:14]} 48. Qc2+ {[%clk 0:00:10]} 1-0


[Site "https://www.chess.com"]

[Event "Titled Tuesday Blitz May 30 Late 2023"]
[White "Oliveira, Tiago Batista"]
[Black "Poltorak, Sebastian"]
[WhiteFideId "2108291"]
[BlackFideId "1199498"]
[WhiteElo "1962"]
[BlackElo "2195"]
[Result "0-1"]
[Round "01"]
[TimeControl "180+2"]
[Date "2023.05.31"]
[WhiteClock "0:00:10"]
[BlackClock "0:01:24"]

1. d4 {[%clk 0:02:58]}  Nf6 {[%clk 0:02:47]} 2. c4 {[%clk 0:02:55]}  e6 {[%clk 0:02:46]} 3. Nf3 {[%clk 0:02:43]}  Bb4+ {[%clk 0:02:40]} 4. Bd2 {[%clk 0:02:41]}  Qe7 {[%clk 0:02:38]} 5. g3 {[%clk 0:02:40]}  Bxd2+ {[%clk 0:02:38]} 6. Nbxd2 {[%clk 0:02:38]}  d6 {[%clk 0:02:37]} 7. Bg2 {[%clk 0:02:32]}  O-O {[%clk 0:02:36]} 8. O-O {[%clk 0:02:31]}  e5 {[%clk 0:02:36]} 9. dxe5 {[%clk 0:02:27]}  dxe5 {[%clk 0:02:35]} 10. e4 {[%clk 0:02:26]}  Nc6 {[%clk 0:02:33]} 11. a3 {[%clk 0:02:23]}  Rd8 {[%clk 0:02:32]} 12. Qb3 {[%clk 0:01:36]}  Rb8 {[%clk 0:02:20]} 13. Rfd1 {[%clk 0:01:33]}  Bg4 {[%clk 0:02:19]} 14. Qe3 {[%clk 0:01:13]}  Nd4 {[%clk 0:02:13]} 15. Rac1 {[%clk 0:01:11]}  c5 {[%clk 0:01:53]} 16. h3 {[%clk 0:01:06]}  Bxf3 {[%clk 0:01:52]} 17. Nxf3 {[%clk 0:01:04]}  b6 {[%clk 0:01:51]} 18. b4 {[%clk 0:01:00]}  Rbc8 {[%clk 0:01:34]} 19. b5 {[%clk 0:00:34]}  Nd7 {[%clk 0:01:31]} 20. Rd2 {[%clk 0:00:33]}  Nf8 {[%clk 0:01:30]} 21. Rcd1 {[%clk 0:00:33]}  f6 {[%clk 0:01:30]} 22. Ne1 {[%clk 0:00:19]}  Nfe6 {[%clk 0:01:27]} 23. Nc2 {[%clk 0:00:18]}  Nxc2 {[%clk 0:01:24]} 24. Rxd8+ {[%clk 0:00:10]}  Rxd8 {[%clk 0:01:24]} 0-1


[Site "https://www.chess.com"]

[Event "Titled Tuesday Blitz May 30 Late 2023"]
[White "Phillips, Rene"]
[Black "ElDivis"]
[WhiteFideId "2056275"]
[WhiteElo "2079"]
[BlackElo "2527"]
[Result "0-1"]
[Round "01"]
[TimeControl "180+2"]
[Date "2023.05.31"]
[WhiteClock "0:00:15"]
[BlackClock "0:01:04"]

1. Nf3 {[%clk 0:02:59]}  d5 {[%clk 0:02:59]} 2. d4 {[%clk 0:02:58]}  Nf6 {[%clk 0:02:57]} 3. Bf4 {[%clk 0:02:59]}  c5 {[%clk 0:02:55]} 4. e3 {[%clk 0:02:59]}  Nc6 {[%clk 0:02:54]} 5. Nbd2 {[%clk 0:03:00]}  e6 {[%clk 0:02:53]} 6. c3 {[%clk 0:02:59]}  Nh5 {[%clk 0:02:52]} 7. Bg3 {[%clk 0:02:59]}  Nxg3 {[%clk 0:02:48]} 8. hxg3 {[%clk 0:03:00]}  g6 {[%clk 0:02:47]} 9. Ne5 {[%clk 0:02:58]}  Nxe5 {[%clk 0:02:45]} 10. dxe5 {[%clk 0:02:58]}  Bg7 {[%clk 0:02:45]} 11. f4 {[%clk 0:02:56]}  Bd7 {[%clk 0:02:44]} 12. Nf3 {[%clk 0:02:52]}  Qb6 {[%clk 0:02:35]} 13. Qb3 {[%clk 0:02:49]}  Qxb3 {[%clk 0:02:32]} 14. axb3 {[%clk 0:02:48]}  Ke7 {[%clk 0:02:30]} 15. Bd3 {[%clk 0:02:42]}  b5 {[%clk 0:02:27]} 16. Ra6 {[%clk 0:02:33]}  c4 {[%clk 0:02:17]} 17. bxc4 {[%clk 0:02:26]}  bxc4 {[%clk 0:02:18]} 18. Bc2 {[%clk 0:02:23]}  h5 {[%clk 0:02:16]} 19. Kd2 {[%clk 0:02:19]}  Rhb8 {[%clk 0:02:16]} 20. Rha1 {[%clk 0:02:16]}  Rb7 {[%clk 0:02:07]} 21. Nd4 {[%clk 0:02:06]}  Bh6 {[%clk 0:01:51]} 22. Kc1 {[%clk 0:02:05]}  Ke8 {[%clk 0:01:47]} 23. Nc6 {[%clk 0:01:49]}  g5 {[%clk 0:01:35]} 24. Nb4 {[%clk 0:01:34]}  h4 {[%clk 0:01:19]} 25. gxh4 {[%clk 0:00:57]}  gxf4 {[%clk 0:01:18]} 26. exf4 {[%clk 0:00:56]}  Bxf4+ {[%clk 0:01:17]} 27. Kd1 {[%clk 0:00:56]}  Bxe5 {[%clk 0:01:15]} 28. Ke2 {[%clk 0:00:55]}  Ke7 {[%clk 0:01:12]} 29. g4 {[%clk 0:00:53]}  Bd6 {[%clk 0:01:08]} 30. Rxd6 {[%clk 0:00:24]}  Kxd6 {[%clk 0:01:07]} 31. Ra2 {[%clk 0:00:15]}  a5 {[%clk 0:01:04]} 0-1


[Site "https://www.chess.com"]